Cogmind - Beta 15 @@@ ROGUE MODE // 2025.06.15 @ 04:33:14 Player: CL-1C0 Result: Destroyed by P0-AF1(R) with Subdweller Shrapnel Launcher Performance ------------- Evolutions (0) 0 Regions Visited (2) 400 Robots Destroyed (10) 50 Value Destroyed (367) 367 Prototype IDs (0) 0 Alien Tech Used (0) 0 Bonus (0) 0 TOTAL SCORE: 817 Bonus ------- None Cogmind --------- Core Integrity 0/250 Matter 47/300 Energy 100/100 System Corruption 0% Temperature Cool (1) Movement Flying (60) Location -10/Subcaves Parts ------- > --- POWER (1) -------- (None) > --- PROPULSION (2) --- Light Treads Flight Unit > --- UTILITY (2) ------ (None) > --- WEAPON (2) ------- Battle Cannon > --- INVENTORY (5) ---- Gun Armor Grenade Launcher Dirty Datajack (20) Peak State ------------ > --- POWER ------------ (None) > --- PROPULSION ------- Light Treads Flight Unit > --- UTILITY ---------- (None) > --- WEAPON ----------- Subdweller Machine Gun Battle Cannon > --- INVENTORY -------- Gun Armor Grenade Launcher Dirty Datajack [Rating: 7] Favorites ----------- Power None Propulsion Light Treads Treads Light Treads Flight Unit Flight Unit Utility None Weapon Battle Cannon Ballistic Gun Subdweller Machine Gun Ballistic Cannon Battle Cannon Launcher Grenade Launcher Build | -11 -10 -10 ------- Run | Yrd Mat Sub Slots Evolved . | . . . Power . | . . . Propulsion . | . . . Utility . | . . . Weapon . | . . . Parts Attached 6 | 2 1 3 Power . | . . . Engine . | . . . Core . | . . . Reactor . | . . . Propulsion 3 | 2 . 1 Treads 2 | 2 . . Leg . | . . . Wheel . | . . . Hover . | . . . Flight 1 | . . 1 Utility . | . . . Device . | . . . Storage . | . . . Processor . | . . . Hackware . | . . . Protection . | . . . Artifact . | . . . Weapon 3 | . 1 2 Energy Gun . | . . . Energy Cannon . | . . . Ballistic Gun 1 | . . 1 Ballistic Cannon 1 | . . 1 Launcher 1 | . 1 . Special Weapon . | . . . Impact Weapon . | . . . Slashing Weapon . | . . . Piercing Weapon . | . . . Special Melee Weapon . | . . . Unidentified Prototypes . | . . . Parts Lost 2 | . . 2 Power . | . . . Propulsion 1 | . . 1 Utility . | . . . Weapon 1 | . . 1 Highest Loss Streak 1 | . . 1 To Critical Strikes . | . . . Average Backups 2 | 4 . 3 Power . | 1 . . Propulsion . | 3 . . Utility . | . . . Weapon 1 | . . 2 Tool/Special . | . . . Unused Backups 2 | . . 2 Power . | . . . Propulsion . | . . . Utility 1 | . . 1 Weapon . | . . . Tool/Special 1 | . . 1 Average Slot Usage (%) 31 | . 30 31 Treads 20 | . 28 19 Flight 6 | . . 7 Ballistic Cannon 1 | . . 2 Launcher 1 | . 2 1 Peak Build Rating 7 | 2 3 7 Average Rating 3 | 1 2 3 On Entrance 3 | 6 2 2 Naked Turns . | . . . Heaviest Build 7 | . . 7 Greatest Support 4 | 3 3 4 Greatest Overweight (x) 2 | . . 2 Average Overweight (x) . | . . . Largest Inventory Capacity 5 | 5 5 5 Average Capacity 5 | 5 5 5 Most Carried 5 | 4 1 5 Average Carried 2 | 2 . 3 Final Capacity 5 | 5 5 5 Final Carried 3 | . 1 3 Class Distribution -------------------- 100% | Mutant Dominant Class ---------------- Mutant | -10/Materials Mutant | -10/Subcaves Resources | -11 -10 -10 ----------- Run | Yrd Mat Sub Matter Collected 378 | 200 . 178 Remotely . | . . . Salvage Created 232 | . 14 218 Parts 18 | . 2 16 Haulers Intercepted . | . . . Recyclers Shooed . | . . . Parts Field Recycled . | . . . Retrieved Matter . | . . . Parts Self-Destructed 4 | . . 4 Prevented . | . . . Kills | -11 -10 -10 ------- Run | Yrd Mat Sub Combat Hostiles Destroyed 9 | . . 9 Guns 1 | . . 1 Cannons 3 | . . 3 AOE 5 | . . 5 Classes Destroyed 3 | . 1 2 Tunneler 1 | . 1 . Artisan 1 | . . 1 Subdweller 9 | . . 9 Best Kill Streak 3 | . 1 3 Combat Bots Only 3 | . . 3 Max Kills in Single Turn 2 | . 1 2 Gunslinging . | . . . Exploded 2 | . . 2 Melee . | . . . Uniques/NPCs Destroyed . | . . . Combat | -11 -10 -10 -------- Run | Yrd Mat Sub Hostile Shots Fired 40 | . . 40 Missed 15 | . . 15 Hits 25 | . . 25 Projectile 25 | . . 25 AOE 1 | . . 1 Critical Strikes 1 | . . 1 Damage Taken 669 | . . 669 Core 253 | . . 253 Absorbed by Shields . | . . . Core Remaining (%) 100 | 100 . . Volleys Fired 39 | . 4 35 Largest 2 | . 1 2 Hottest 63 | . 30 63 Shots Fired 47 | . 4 43 Gun 8 | . . 8 Cannon 21 | . . 21 Launcher 18 | . 4 14 Special . | . . . Kinetic 29 | . . 29 Thermal . | . . . Explosive 18 | . 4 14 Electromagnetic . | . . . Robot Hit Streak 10 | . . 10 Robot Miss Streak 1 | . . 1 Penetration Max . | . . . Secondary Targets . | . . . Shots Hit Robots 29 | . . 29 Core Hits 20 | . 1 19 Critical Kills . | . . . Critical Parts Destroyed . | . . . Critical Strikes . | . . . Melee Attacks . | . . . Impact . | . . . Slashing . | . . . Piercing . | . . . Sneak Attacks . | . . . Combat Hostiles . | . . . Follow-up Attacks . | . . . Damage Inflicted 1252 | . 37 1215 Guns 131 | . . 131 Cannons 373 | . . 373 Explosions 748 | . 37 711 Melee . | . . . Ramming . | . . . Kinetic 504 | . . 504 Thermal . | . . . Explosive 748 | . 37 711 Electromagnetic . | . . . Impact . | . . . Slashing . | . . . Piercing . | . . . Highest Corruption . | . . . Average Corruption . | . . . Corruption Purged . | . . . Corruption Blocked . | . . . Overload Shots . | . . . Overflow Damage . | . . . Projectiles . | . . . Explosions . | . . . Melee . | . . . Knockbacks 4 | . . 4 Impact . | . . . Kinetic 4 | . . 4 Secondary . | . . . Self-Inflicted Damage 23 | . . 23 Shots 1 | . . 1 Rammed . | . . . Targets Rammed . | . . . Kicked . | . . . Crushed . | . . . Highest Temperature . | . . . Average Temperature . | . . . Received Heat Transfer 123 | . . 123 Siege Activations . | . . . Martial Activations . | . . . Shielding Activations . | . . . Robots Disrupted . | . . . Combat Hostiles . | . . . Robots Corrupted . | . . . Combat Hostiles . | . . . Parts Fried . | . . . Impact Corruptions . | . . . Robots Melted . | . . . Combat Hostiles . | . . . Parts Melted 1 | . . 1 Heat Transferred . | . . . Parts Sabotaged . | . . . Parts Stolen . | . . . Parts Stripped . | . . . Power Chain Reactions . | . . . Alert | -11 -10 -10 ------- Run | Yrd Mat Sub Maximum Alert Level . | . . . Low Security (%) 100 | 100 100 . Level 1 . | . . . Level 2 . | . . . Level 3 . | . . . Level 4 . | . . . Level 5 . | . . . High Security . | . . . Max Security . | . . . Peak Influence 11 | . 11 . Initial . | . . . Average 1 | . 1 . Influence Increases 11 | . 11 . Destroy 0b10 Robot/NC 5 | . 5 . Destroy Structure 6 | . 6 . Influence Decreases 11 | . 10 1 Entered New Map 1 | . . 1 Time Decay 10 | . 10 . Squads Dispatched . | . . . Investigation . | . . . Extermination . | . . . Reinforcement . | . . . Assault . | . . . Garrison . | . . . Intercept . | . . . Searches Triggered . | . . . Construction Impeded . | . . . Haulers Reinforced . | . . . Active Scanning Responses . | . . . Cargo Convoy Interrupts . | . . . Stealth | -11 -10 -10 --------- Run | Yrd Mat Sub Distress Signals . | . . . Communications Jammed . | . . . Distress Signals . | . . . Times Spotted 10 | . . 10 Peak Tracking Total 3 | . . 3 Tactical Retreats . | . . . Traps | -11 -10 -10 ------- Run | Yrd Mat Sub Traps Triggered . | . . . Indirectly . | . . . Trap Hack Attempts . | . . . Triggered . | . . . Disarmed . | . . . Reprogrammed . | . . . Reused . | . . . Traps Extracted . | . . . Installed . | . . . Triggered . | . . . Machines | -11 -10 -10 ---------- Run | Yrd Mat Sub Machines Disabled . | . . . Max in Single Turn . | . . . Machines Repaired . | . . . Machines Dismantled . | . . . Machines Sabotaged . | . . . Overloaded Fab Kills . | . . . Hacking | -11 -10 -10 --------- Run | Yrd Mat Sub Machines Accessed 1 | . 1 . Terminals 1 | . 1 . Fabricators . | . . . Repair Stations . | . . . Recycling Units . | . . . Scanalyzers . | . . . Garrison Access . | . . . Total Hacks 4 | . 4 . Successful 1 | . 1 . Failed 3 | . 3 . Catastrophic . | . . . Database Lockouts . | . . . Manual . | . . . Terminals 4 | . 4 . Fabricators . | . . . Repair Stations . | . . . Recycling Units . | . . . Scanalyzers . | . . . Garrison Access . | . . . Terminal Hacks 1 | . 1 . Hauler Manifests 1 | . 1 . Fabricator Hacks . | . . . Repair Station Hacks . | . . . Recycling Unit Hacks . | . . . Scanalyzer . | . . . Garrison Access Hacks . | . . . Unauthorized Hacks . | . . . Terminals . | . . . Fabricators . | . . . Repair Stations . | . . . Recycling Units . | . . . Scanalyzers . | . . . Garrison Access . | . . . Data Cores Recovered . | . . . Used . | . . . Hacking Detections 1 | . 1 . Full Trace Events 1 | . 1 . Feedback Events . | . . . Feedback Blocked . | . . . Robot Schematics Acquired . | . . . Robots Built . | . . . Authchips . | . . . Time . | . . . Total Robot Build Rating . | . . . Part Schematics Acquired . | . . . Parts Built . | . . . Authchips . | . . . Time . | . . . Total Part Build Rating . | . . . Parts Repaired . | . . . Time . | . . . Parts Recycled . | . . . Recycled Matter . | . . . Retrieved Matter . | . . . Retrieved Components . | . . . Parts Scanalyzed . | . . . Part Schematics Acquired . | . . . Parts Damaged . | . . . Bothacking | -11 -10 -10 ------------ Run | Yrd Mat Sub Used RIF Installer . | . . . Robots Hacked . | . . . Non-combat . | . . . Combat . | . . . Robot Hacks Applied . | . . . Relay Couplers Released . | . . . Fabnet Peak Effective % . | . . . Robots Rewired . | . . . Allies Hacked . | . . . Hacks Repelled . | . . . Allies | -11 -10 -10 -------- Run | Yrd Mat Sub Total Allies . | . . . Largest Group . | . . . Highest-Rated Group . | . . . Highest-Rated Ally . | . . . Total Orders . | . . . Ally Attacks . | . . . Total Damage . | . . . Kills . | . . . Allies Corrupted . | . . . Allies Melted . | . . . Intel | -11 -10 -10 ------- Run | Yrd Mat Sub Active Infowar (turns) . | . . . Robot Analysis Total . | . . . Derelict Logs Recovered 1 | . . 1 Drone Launches . | . . . Drone Recoveries . | . . . Exploration | -11 -10 -10 ------------- Run | Yrd Mat Sub Turns Passed 594 | 4 62 528 Spaces Moved 763 | 1 103 659 Core 384 | 1 103 280 Treads . | . . . Legs . | . . . Wheels . | . . . Hover . | . . . Flight 379 | . . 379 Fastest Speed 50 | 50 50 50 Average Speed 55 | 50 50 55 Slowest Speed 150 | 50 50 150 Overloaded Moves . | . . . Propulsion Burnouts . | . . . Robots Hopped 1 | . . 1 Potential Cave-ins . | . . . Cave-ins Triggered . | . . . Exploration Rate (%) 16 | 1 20 29 Regions Visited 2 Branch Regions 1 Pre-discovered Areas . | . . . Known Exits Taken . | . . . Unknown Exits Taken 2 | 1 1 . Scrap Searched . | . . . Spaces Dug 5 | . . 5 Terrain Destroyed 88 | . 12 76 Melee . | . . . Projectile . | . . . AOE 88 | . 12 76 Terrain Rammed . | . . . Walls Destroyed . | . . . Machines Disabled . | . . . Actions | -11 -10 -10 --------- Run | Yrd Mat Sub Total 891 | 5 109 777 Wait 62 | . . 62 Move 759 | . 102 657 Hop 1 | . . 1 Pick Up 5 | . 1 4 Fast Attach 1 | . . 1 Attach 12 | 2 1 9 Detach 8 | . 1 7 Swap 1 | . . 1 Drop 3 | 3 . . Fire 39 | . 4 35 Melee . | . . . Ram . | . . . Kick . | . . . Crush . | . . . Escape Stasis . | . . . Rewire . | . . . Trap . | . . . Miscellaneous . | . . . Route ------- -11/Scrapyard -10/Materials -10/Subcaves History --------- Turn | Location | Event 1 | -11/Scrapyard | Released all parts (6) 5 | -11/Scrapyard | Discovered new exit (range 0) 5 | -11/Scrapyard | Entered Materials 61 | -10/Materials | Discovered new exit (range 9) 67 | -10/Materials | Entered Subcaves 68 | -10/Subcaves | Approached by a straggling Scientist 153 | -10/Subcaves | Ambushed by Subdweller buried in earth 265 | -10/Subcaves | A Subdweller sparked back to life 265 | -10/Subcaves | A Subdweller sparked back to life 292 | -10/Subcaves | Found Prototype Protection 304 | -10/Subcaves | Build established: Mutant 310 | -10/Subcaves | Core integrity fell below 50% 563 | -10/Subcaves | Learned Materials stockpile data 573 | -10/Subcaves | Core integrity fell below 20% 595 | -10/Subcaves | Destroyed by P0-AF1(R) with Subdweller Shrapnel Launcher Last Messages --------------- 00321_ N1-EAQ(R) destroyed. 00326_ Acquired Flight Unit. 00327_ Acquired 53 matter. 00337_ Subatomizers dissect the Sub. Optics. 00459_ U1-V1A(O) collects matter. 00535_ WN-LVT(z): "She is not going to be happy we haven't found any suitable candidates yet." 00543_ LV-38M(R) knocked back. 00557_ LV-38M(R) destroyed. 00563_ Acquired 11 matter. 00563_ Acquired derelict log, extracted data. Data stored: Materials stockpile data. 00565_ Acquired 11 matter. 00570_ 4O-8A8(R): "FREEEEDUMB!" 00577_ Sub. Machine Gun destroyed. 00580_ 4O-8A8(R) knocked back. 00586_ 4O-8A8(R) destroyed. 00588_ Acquired 4 matter. 00590_ Acquired 9 matter. 00595_ Acquired 4 matter. Map ----- +----------------------------------------------------+ | ?????????????????????????????????????????????????? | | ?????????????????????????????????????????????????? | | ?????????????????????????????????????????????????? | | ?????????????????????????????????????????????????? | | ?????????????????????????????????????????????????? | | ?????????????????????????????????????????????????? | | ?????????????????????????????????????????????????? | | ?????????????????????##???#??????????????????????? | | ?????????????????????# ### ######????????????????? | | ??????????????????????"""" # #????????????????? | | ?????????????????????? #????????????????? | | ??????????????????????? #????????????????? | | ??????????????????????? R #????????????????? | | ???????????????????????? ! ##???????????????? | | ???????????????????????? % ##??????????????? | | ????????????????????###??" ; #??????????????? | | ???????????????????##"###"";; #???????????????? | | ?????????????????### "# #???????????????? | | ?????????????????# % #???????????????? | | ?????????????????# % """#??????????????? | | ?????????????????# # #% ##"" #?????????????? | | ?????????????????# #####& ##??? ##?????????????? | | ?????????????????## ##### ####?????????????????? | | ??????????????????# # %%# #?????????????????? | | ??????????????????# & #?????????????????? | | ??????????????????## ## @ #?????????????????? | | ???????????????????######;; #?????????????????? | | ??????????????????????????# ##????????????????? | | ??????????????????????????# ##???????????????? | | ??????????????????????????# "#???????????????? | | ??????????????????????????# "#???????????????? | | ??????????????????????????# ""##??????????????? | | ??????????????????????????## """"#??????????????? | | ??????????????????????????## "" #??????????????? | | ?????????????????????????## ##??????????????? | | ?????????????????????##### ##???????????????? | | ?????????????????????# #????????????????? | | ?????????????????????# ##????????????????? | | ?????????????????????# ## ####?????????????????? | | ????????????????????# ## #????????????????????? | | ????????????????????# ### ##???????????????????? | | ????????????????????#####?# ####????????????????? | | ?????????????????????????## #????????????????? | | ?????????????????????????# ##???????????????? | | ?????????????????????????#### ##??????????????? | | ????????????????????????????### #??????????????? | | ??????????????????????????????# ##?????????????? | | ??????????????????????????????# #?????????????? | | ????????????????????####??????# ##?????????????? | | ???????????????????## ##?????# ##?????????????? | +----------------------------------------------------+ Best States ------------- Heat Dissipation 25 Energy Generation 5 Energy Capacity 100 Matter Stores 280 Matter Capacity 300 Sight Range 16 Terrain Scan Density 10 Evasion (%) 58 Recoil Reduction 2 Item Schematics ----------------- None Robot Schematics ------------------ None Fabricated ------------ Nothing Repaired ---------- Nothing Alien Tech Used ----------------- None Achievements -------------- None Challenges ------------ None Game ------ Seed DrainedAblativeMask Manual? 0 Play Time 00:07:17 Cumulative 539.0 hours Start 2025.06.15 @ 04:24:47 End 2025.06.15 @ 04:33:14 Sessions 1 Manual Loads 0 Difficulty Rogue Special Mode None Game No. 641 Rogue 641 Adventurer 0 Explorer 0 Win Type - Total 19 Types 13/0/5/1/0/0/0/0/0/0 Lore% 83 Gallery% 83 Achievement% 82 Wizard Run 0 Options --------- Layout 0 ASCII 0 Keyboard 0 Movement Numpad Keybinds 0 Fullscreen 1 Font 18/SmallcapsGlow Map View 76x50 Zoom Use 0% Tactical HUD 1 Map Filters NONE Filters NONE Steam 1 RUN: 1a8725d6-6fc9-422f-9c43-46ed184a2066